fUSD/lending_fUSD_20241221
["ID","MTS","AMOUNT","RATE_DAILY","PERIOD"]
[346179624,1734766239058,-511.61503258,0.00019178,2]
[346179625,1734766239067,-607.36,0.00019178,2]
[346179626,1734766239076,-500.0,0.00019178,2]
[346179627,1734766239085,-500.0,0.00019178,2]
[346179628,1734766239095,-558.21878812,0.00019178,2]
[346179629,1734766239104,-1487.45,0.00019178,2]
[346179630,1734766239114,-500.0,0.00019178,2]
[346179631,1734766239123,-500.0,0.00019178,2]
[346179632,1734766239132,-500.0,0.00019178,2]
[346179633,1734766239142,-500.0,0.00019178,2]
[346179634,1734766239152,-500.0,0.00019178,2]
[346179635,1734766239161,-500.0,0.00019178,2]
[346179636,1734766239170,-500.0,0.00019178,2]
[346179637,1734766239180,-500.0,0.00019178,2]
[346179638,1734766239190,-500.0,0.00019178,2]
[346179639,1734766239199,-500.0,0.00019178,2]
[346179640,1734766239208,-500.0,0.00019178,2]
[346179641,1734766239217,-549.07114102,0.00019178,2]
[346179642,1734766239226,-598.62,0.00019178,2]
[346179643,1734766239236,-604.84,0.00019178,2]
[346179644,1734766239245,-500.0,0.00019178,2]
[346179645,1734766239255,-500.0,0.00019178,2]
[346179646,1734766239264,-500.0,0.00019178,2]
[346179647,1734766239273,-500.0,0.00019178,2]
[346179648,1734766239283,-500.0,0.00019178,2]
[346179649,1734766239293,-500.0,0.00019178,2]
[346179650,1734766239302,-500.0,0.00019178,2]
[346179651,1734766239311,-500.0,0.00019178,2]
[346179652,1734766239321,-544.98,0.00019178,2]
[346179653,1734766239330,-658.28,0.00019178,2]
[346179654,1734766239340,-500.0,0.00019178,2]
[346179655,1734766239350,-500.0,0.00019178,2]
[346179656,1734766239360,-538.36,0.00019178,2]
[346179657,1734766239369,-500.0,0.00019178,2]
[346179658,1734766239379,-676.52,0.00019178,2]
[346179659,1734766239388,-4000.0,0.00019178,2]
[346179660,1734766239398,-271.0,0.0001926,2]
[346179661,1734766239408,-45599.2,0.00019316,2]
[346179662,1734766239418,-166.82,0.00019331,2]
[346179663,1734766239427,-196.58875141,0.00019348,2]
[346179664,1734766239437,-150.93681909,0.00019349,2]
[346179665,1734766239447,-500.0,0.00019447,2]
[346179666,1734766239457,-500.0,0.00019447,2]
[346179667,1734766239466,-500.0,0.00019447,2]
[346179668,1734766239475,-689.39,0.00019447,2]
[346179669,1734766239486,-500.0,0.00019447,2]
[346179670,1734766239495,-538.01,0.00019447,2]
[346179671,1734766239505,-500.0,0.00019447,2]
[346179672,1734766239514,-1397.48,0.00019447,2]
[346179673,1734766239524,-963.78,0.00019447,2]
[346179674,1734766239534,-697.47,0.00019447,2]
[346179675,1734766239544,-792.07,0.00019447,2]
[346179676,1734766239554,-770.71,0.00019447,2]
[346179677,1734766239563,-1343.87,0.00019447,2]
[346179678,1734766239572,-537.37,0.00019447,2]
[346179679,1734766239582,-500.0,0.00019447,2]
[346179680,1734766239591,-783.1,0.00019447,2]
[346179681,1734766239600,-508.67,0.00019447,2]
[346179682,1734766239610,-4069.09,0.00019447,2]
[346179683,1734766239620,-500.0,0.00019447,2]
[346179684,1734766239632,-500.0,0.00019447,2]
[346179685,1734766239642,-500.0,0.00019447,2]
[346179686,1734766239653,-546.82,0.00019447,2]
[346179687,1734766239663,-500.0,0.00019447,2]
[346179689,1734766239672,-500.0,0.00019447,2]
[346179690,1734766239682,-500.0,0.00019447,2]
[346179691,1734766239691,-551.01,0.00019447,2]
[346179692,1734766239700,-500.0,0.00019447,2]
[346179693,1734766239710,-500.0,0.00019447,2]
[346179694,1734766239719,-557.35,0.00019447,2]
[346179695,1734766239728,-500.0,0.00019447,2]
[346179696,1734766239738,-500.0,0.00019447,2]
[346179697,1734766239748,-500.0,0.00019447,2]
[346179698,1734766239757,-500.0,0.00019447,2]
[346179700,1734766239766,-669.27,0.00019447,2]
[346179701,1734766239777,-623.37,0.00019447,2]
[346179702,1734766239786,-500.0,0.00019448,2]
[346179703,1734766239795,-500.0,0.00019448,2]
[346179704,1734766239805,-500.0,0.00019448,2]
[346179705,1734766239816,-500.0,0.00019448,2]
[346179706,1734766239826,-500.0,0.00019448,2]
[346179707,1734766239836,-500.0,0.00019448,2]
[346179708,1734766239846,-500.0,0.00019448,2]
[346179709,1734766239855,-500.0,0.00019448,2]
[346179710,1734766239864,-500.0,0.00019448,2]
[346179711,1734766240102,-500.0,0.00019448,2]
[346179712,1734766240112,-500.0,0.00019448,2]
[346179713,1734766240122,-500.0,0.00019448,2]
[346179714,1734766240131,-500.0,0.00019448,2]
[346179715,1734766240140,-598.15,0.00019448,2]
[346179717,1734766240150,-500.0,0.00019448,2]
[346179718,1734766240159,-500.0,0.00019448,2]
[346179719,1734766240168,-500.0,0.00019448,2]
[346179720,1734766240177,-500.0,0.00019448,2]
[346179721,1734766240186,-500.0,0.00019448,2]
[346179722,1734766240195,-500.0,0.00019448,2]
[346179723,1734766240206,-500.0,0.00019448,2]
[346179724,1734766240215,-500.0,0.00019448,2]
[346179725,1734766240225,-500.0,0.00019448,2]
[346179726,1734766240234,-500.0,0.00019448,2]
[346179727,1734766240243,-564.39941927,0.00019448,2]
[346179728,1734766240254,-500.0,0.00019448,2]
[346179729,1734766240264,-500.0,0.00019448,2]
[346179730,1734766240273,-500.0,0.00019448,2]
[346179731,1734766240282,-500.0,0.00019448,2]
[346179732,1734766240292,-500.0,0.00019448,2]
[346179733,1734766240301,-500.0,0.00019448,2]
[346179734,1734766240311,-537.904182,0.00019448,2]
[346179735,1734766240321,-152.502649,0.00019448,2]
[346179736,1734766240331,-544.31,0.00019448,2]
[346179737,1734766240340,-500.0,0.00019448,2]
[346179738,1734766240350,-567.96,0.00019448,2]
[346179739,1734766240360,-500.0,0.00019448,2]
[346179740,1734766240369,-516.22,0.00019448,2]
[346179741,1734766240379,-800.025363,0.00019448,2]
[346179742,1734766240389,-500.0,0.00019448,2]
[346179743,1734766240399,-500.0,0.00019448,2]
[346179744,1734766240409,-500.0,0.00019448,2]
[346179745,1734766240418,-500.0,0.00019448,2]
[346179746,1734766240428,-500.0,0.00019448,2]
[346179747,1734766240438,-500.0,0.00019448,2]
[346179748,1734766240447,-500.0,0.00019448,2]
[346179749,1734766240458,-500.0,0.00019448,2]
[346179750,1734766240467,-500.0,0.00019448,2]
[346179751,1734766240477,-500.0,0.00019448,2]
[346179752,1734766240486,-500.0,0.00019448,2]
[346179753,1734766240496,-500.0,0.00019448,2]
[346179754,1734766240506,-500.0,0.00019448,2]
[346179755,1734766240515,-500.0,0.00019448,2]
[346179756,1734766240525,-500.0,0.00019448,2]
[346179757,1734766240535,-500.0,0.00019448,2]
[346179758,1734766240544,-500.0,0.00019448,2]
[346179759,1734766240554,-500.0,0.00019448,2]
[346179760,1734766240563,-500.0,0.00019448,2]
[346179761,1734766240573,-500.0,0.00019448,2]
[346179762,1734766240584,-500.0,0.00019448,2]
[346179763,1734766240594,-500.0,0.00019448,2]
[346179764,1734766240603,-500.0,0.00019448,2]
[346179765,1734766240613,-500.0,0.00019448,2]
[346179766,1734766240622,-500.0,0.00019448,2]
[346179767,1734766240632,-500.0,0.00019448,2]
[346179768,1734766240641,-500.0,0.00019448,2]
[346179769,1734766240650,-500.0,0.00019448,2]
[346179770,1734766240660,-660.08,0.00019448,2]
[346179772,1734766240670,-500.0,0.00019448,2]
[346179773,1734766240683,-500.0,0.00019448,2]
[346179774,1734766240695,-500.0,0.00019448,2]
[346179775,1734766240707,-500.0,0.00019448,2]
[346179777,1734766240717,-522.91,0.00019448,2]
[346179778,1734766240726,-162.029188,0.00019448,2]
[346179779,1734766240735,-500.0,0.00019448,2]
[346179780,1734766240744,-500.0,0.00019448,2]
[346179781,1734766240754,-500.0,0.00019448,2]
[346179782,1734766240764,-500.0,0.00019448,2]
[346179783,1734766240773,-500.0,0.00019448,2]
[346179784,1734766240783,-632.96,0.00019448,2]
[346179785,1734766240791,-152.385784,0.00019448,2]
[346179786,1734766240800,-500.0,0.00019448,2]
[346179787,1734766240810,-883.23,0.00019448,2]
[346179788,1734766240821,-500.0,0.00019448,2]
[346179789,1734766240831,-500.0,0.00019448,2]
[346179790,1734766240840,-500.0,0.00019448,2]
[346179791,1734766240850,-500.0,0.00019448,2]
[346179792,1734766240859,-500.0,0.00019448,2]
[346179793,1734766240869,-584.02,0.00019448,2]
[346179794,1734766240879,-500.0,0.00019448,2]
[346179795,1734766240889,-500.0,0.00019448,2]
[346179796,1734766240898,-161.151945,0.00019448,2]
[346179797,1734766240908,-152.502649,0.00019448,2]
[346179798,1734766240917,-793.22,0.00019448,2]
[346179799,1734766240927,-500.0,0.00019448,2]
[346179800,1734766240938,-500.0,0.00019448,2]
[346179801,1734766240950,-500.0,0.00019448,2]
[346179802,1734766240960,-500.0,0.00019448,2]
[346179803,1734766240970,-875.32,0.00019448,2]
[346179804,1734766240979,-500.0,0.00019448,2]
[346179805,1734766240989,-558.23,0.00019448,2]
[346179806,1734766240998,-500.0,0.00019448,2]
[346179807,1734766241008,-1181.67,0.00019448,2]
[346179808,1734766241018,-160.131679,0.00019448,2]
[346179809,1734766241029,-500.0,0.00019448,2]
[346179810,1734766241038,-500.0,0.00019448,2]
[346179811,1734766241047,-500.0,0.00019448,2]
[346179812,1734766241057,-500.0,0.00019448,2]
[346179813,1734766241066,-500.0,0.00019448,2]
[346179814,1734766241075,-501.87782841,0.00019448,2]
[346179815,1734766241084,-500.0,0.00019448,2]
[346179816,1734766241093,-709.0,0.00019448,2]
[346179817,1734766241103,-500.0,0.00019448,2]
[346179818,1734766241112,-500.0,0.00019448,2]
[346179819,1734766241122,-500.0,0.00019448,2]
[346179820,1734766241133,-500.0,0.00019448,2]
[346179821,1734766241142,-500.0,0.00019448,2]
[346179822,1734766241151,-160.455202,0.00019448,2]
[346179823,1734766241160,-157.564534,0.00019448,2]
[346179824,1734766241170,-519.43,0.00019448,2]
[346179825,1734766241180,-152.502649,0.00019448,2]
[346179826,1734766241189,-500.0,0.00019448,2]
[346179827,1734766241199,-792.61,0.00019448,2]
[346179828,1734766241210,-659.48,0.00019448,2]
[346179829,1734766241220,-500.0,0.00019448,2]
[346179830,1734766241229,-748.6,0.00019448,2]
[346179831,1734766241238,-500.0,0.00019448,2]
[346179832,1734766241248,-500.0,0.00019448,2]
[346179833,1734766241258,-790.31,0.00019448,2]
[346179834,1734766241267,-683.95,0.00019448,2]
[346179835,1734766241277,-500.0,0.00019448,2]
[346179836,1734766241286,-500.0,0.00019448,2]
[346179837,1734766241295,-154.480517,0.00019448,2]
[346179838,1734766241304,-500.0,0.00019448,2]
[346179839,1734766241319,-930.92,0.00019448,2]
[346179840,1734766241329,-501.21,0.00019448,2]
[346179841,1734766241338,-500.0,0.00019448,2]
[346179842,1734766241348,-500.0,0.00019448,2]
[346179843,1734766241357,-500.0,0.00019448,2]
[346179844,1734766241367,-704.07,0.00019448,2]
[346179845,1734766241376,-500.0,0.00019448,2]
[346179846,1734766241385,-500.0,0.00019448,2]
[346179847,1734766241394,-500.0,0.00019448,2]
[346179848,1734766241404,-5899.9,0.00019448,2]
[346179849,1734766241413,-4159.09,0.00019448,2]
[346179850,1734766241422,-500.0,0.00019448,2]
[346179851,1734766241432,-630.74,0.00019448,2]
[346179852,1734766241440,-500.0,0.00019448,2]
[346179853,1734766241450,-1332.42,0.00019448,2]
[346179854,1734766241459,-500.0,0.00019448,2]
[346179855,1734766241468,-500.0,0.00019448,2]
[346179856,1734766241476,-500.0,0.00019448,2]
[346179857,1734766241485,-151.0377,0.00019448,2]
[346179858,1734766241497,-1550.03,0.00019448,2]
[346179859,1734766241506,-500.0,0.00019448,2]
[346179860,1734766241515,-500.0,0.00019448,2]
[346179861,1734766241524,-1728.02,0.00019448,2]
[346179862,1734766241534,-500.0,0.00019448,2]
[346179863,1734766241543,-157.564534,0.00019448,2]
[346179864,1734766241552,-503.19993973,0.00019448,2]
[346179865,1734766241561,-501.50387687,0.00019448,2]
[346179866,1734766241571,-500.0,0.00019448,2]
[346179867,1734766241580,-2009.63,0.00019448,2]
[346179868,1734766241590,-500.0,0.00019448,2]
[346179869,1734766241599,-500.0,0.00019448,2]
[346179870,1734766241608,-500.0,0.00019448,2]
[346179871,1734766241618,-500.0,0.00019448,2]
[346179872,1734766241627,-500.0,0.00019448,2]
[346179873,1734766241637,-677.89,0.00019448,2]
[346179874,1734766241649,-152.385783,0.00019448,2]
[346179875,1734766241658,-504.98532936,0.00019448,2]
[346179876,1734766241668,-500.0,0.00019448,2]
[346179877,1734766241678,-3836.36,0.00019448,2]
[346179878,1734766241687,-500.0,0.00019448,2]
[346179879,1734766241696,-500.0,0.00019448,2]
[346179880,1734766241706,-500.0,0.00019448,2]
[346179881,1734766241715,-500.0,0.00019448,2]
[346179882,1734766241725,-500.0,0.00019448,2]
[346179883,1734766241734,-1192.91,0.00019448,2]
[346179884,1734766241743,-500.0,0.00019448,2]
[346179885,1734766241753,-500.0,0.00019448,2]
[346179886,1734766241762,-1376.74,0.00019448,2]
[346179887,1734766241772,-329.26739849,0.00019448,2]
[346179888,1734766241781,-1937.19,0.00019448,2]
[346179889,1734766241790,-503.94995174,0.00019448,2]
[346179890,1734766241799,-500.0,0.00019448,2]
[346179891,1734766241808,-161.151945,0.00019448,2]
[346179892,1734766241819,-500.0,0.00019448,2]
[346179893,1734766241828,-201.42433743,0.00019448,2]
[346179894,1734766241838,-500.0,0.00019448,2]
[346179895,1734766241847,-696.37,0.00019448,2]
[346179896,1734766241856,-688.65,0.00019448,2]
[346179897,1734766241865,-826.51,0.00019448,2]
[346179898,1734766241874,-500.0,0.00019448,2]
[346179899,1734766241884,-500.0,0.00019448,2]
[346179900,1734766241893,-500.0,0.00019448,2]
[346179901,1734766241903,-500.0,0.00019448,2]
[346179902,1734766241912,-720.34,0.00019448,2]
[346179903,1734766241922,-611.09362932,0.00019448,2]
[346179904,1734766241931,-501.22583501,0.00019448,2]
[346179905,1734766241945,-500.0,0.00019449,2]
[346179906,1734766241956,-500.0,0.00019449,2]
[346179907,1734766241965,-500.0,0.00019449,2]
[346179908,1734766241975,-500.0,0.00019449,2]
[346179909,1734766241985,-500.0,0.00019449,2]
[346179910,1734766241994,-500.0,0.00019449,2]
[346179911,1734766242004,-500.0,0.00019449,2]
[346179912,1734766242015,-500.0,0.00019449,2]
[346179913,1734766242024,-500.0,0.00019449,2]
[346179914,1734766242033,-500.0,0.00019449,2]
[346179915,1734766242044,-500.0,0.00019449,2]
[346179916,1734766242054,-500.0,0.00019449,2]
[346179917,1734766242063,-500.0,0.00019449,2]
[346179918,1734766242072,-500.0,0.00019449,2]
[346179919,1734766242082,-500.0,0.00019449,2]
[346179920,1734766242091,-500.0,0.00019449,2]
[346179921,1734766242100,-500.0,0.00019449,2]
[346179922,1734766242109,-500.0,0.00019449,2]
[346179923,1734766242120,-500.0,0.00019449,2]
[346179924,1734766242129,-500.0,0.00019449,2]
[346179925,1734766242138,-500.0,0.00019449,2]
[346179926,1734766242147,-500.0,0.00019449,2]
[346179927,1734766242156,-500.0,0.00019449,2]
[346179928,1734766242165,-500.0,0.00019449,2]
[346179929,1734766242175,-500.0,0.00019449,2]
[346179930,1734766242185,-500.0,0.00019449,2]
[346179931,1734766242194,-500.0,0.00019449,2]
[346179932,1734766242204,-500.0,0.00019449,2]
[346179933,1734766242213,-500.0,0.00019449,2]
[346179934,1734766242222,-500.0,0.00019449,2]
[346179935,1734766242231,-559.68793212,0.00019449,2]
[346179936,1734766242241,-500.0,0.00019449,2]
[346179937,1734766242251,-500.0,0.00019449,2]
[346179938,1734766242260,-500.0,0.00019449,2]
[346179939,1734766242269,-500.0,0.00019449,2]
[346179940,1734766242278,-500.0,0.00019449,2]
[346179941,1734766242287,-500.0,0.00019449,2]
[346179942,1734766242297,-500.0,0.00019449,2]
[346179943,1734766242307,-500.0,0.00019449,2]
[346179944,1734766242316,-500.0,0.00019449,2]
[346179945,1734766242326,-500.0,0.00019449,2]
[346179946,1734766242336,-500.0,0.00019449,2]
[346179947,1734766242345,-500.0,0.00019449,2]
[346179948,1734766242355,-500.0,0.00019449,2]
[346179949,1734766242365,-500.0,0.00019449,2]
[346179950,1734766242375,-500.0,0.00019449,2]
[346179951,1734766242385,-500.0,0.00019449,2]
[346179952,1734766242395,-500.0,0.00019449,2]
[346179953,1734766242405,-507.64741232,0.00019449,2]
[346179954,1734766242414,-506.64195676,0.00019449,2]
[346179955,1734766242423,-500.0,0.00019449,2]
[346179956,1734766242432,-500.0,0.00019449,2]
[346179957,1734766242442,-500.0,0.00019449,2]
[346179958,1734766242452,-500.0,0.00019449,2]
[346179959,1734766242462,-500.0,0.00019449,2]
[346179960,1734766242471,-508.08727053,0.00019449,2]
[346179961,1734766242481,-500.0,0.00019449,2]
[346179962,1734766242491,-500.0,0.00019449,2]
[346179963,1734766242500,-500.0,0.00019449,2]
[346179964,1734766242509,-500.0,0.00019449,2]
[346179965,1734766242519,-500.0,0.00019449,2]
[346179966,1734766242528,-500.0,0.00019449,2]
[346179967,1734766242538,-500.0,0.00019449,2]
[346179968,1734766242547,-500.96200082,0.00019449,2]
[346179969,1734766242557,-500.0,0.00019449,2]
[346179970,1734766242566,-502.83792077,0.00019449,2]
[346179971,1734766242576,-500.0,0.00019449,2]
[346179972,1734766242585,-500.0,0.00019449,2]
[346179973,1734766242595,-500.0,0.00019449,2]
[346179974,1734766242604,-500.0,0.00019449,2]
[346179975,1734766242614,-500.0,0.00019449,2]
[346179976,1734766242623,-500.0,0.00019449,2]
[346179977,1734766242632,-500.0,0.00019449,2]
[346179978,1734766242641,-500.0,0.00019449,2]
[346179980,1734766242650,-500.0,0.00019449,2]
[346179981,1734766242659,-500.0,0.00019449,2]
[346179982,1734766242668,-500.0,0.00019449,2]
[346179983,1734766242677,-500.0,0.00019449,2]
[346179984,1734766242686,-500.0,0.00019449,2]
[346179985,1734766242695,-151.92020346,0.00019449,2]
[346179986,1734766242705,-500.0,0.00019449,2]
[346179988,1734766242714,-577.26831856,0.00019449,2]
[346179990,1734766242723,-5000.0,0.00019449,2]
[346179991,1734766242732,-500.0,0.00019449,2]
[346179993,1734766242741,-500.0,0.00019449,2]
[346179995,1734766242750,-500.0,0.00019449,2]
[346179996,1734766242759,-500.0,0.00019449,2]
[346179997,1734766242768,-500.0,0.00019449,2]
[346179999,1734766242777,-500.0,0.00019449,2]
[346180001,1734766242786,-500.0,0.00019449,2]
[346180003,1734766242795,-500.0,0.00019449,2]
[346180005,1734766242804,-500.0,0.00019449,2]
[346180007,1734766242813,-500.0,0.00019449,2]
[346180009,1734766242823,-500.0,0.00019449,2]
[346180011,1734766242832,-500.0,0.00019449,2]
[346180013,1734766242841,-500.0,0.00019449,2]
[346180015,1734766242851,-500.0,0.00019449,2]
[346180017,1734766242860,-500.0,0.00019449,2]
[346180019,1734766242869,-500.0,0.00019449,2]
[346180020,1734766242878,-500.0,0.00019449,2]
[346180021,1734766242886,-522.37486953,0.00019449,2]
[346180022,1734766242895,-500.0,0.00019449,2]
[346180023,1734766242907,-500.0,0.00019449,2]
[346180024,1734766242917,-500.0,0.00019449,2]
[346180025,1734766242929,-500.0,0.00019449,2]
[346180026,1734766242941,-500.0,0.00019449,2]
[346180027,1734766242956,-500.0,0.00019449,2]
[346180028,1734766242968,-500.0,0.00019449,2]
[346180029,1734766242979,-500.0,0.00019449,2]
[346180030,1734766242990,-500.0,0.00019449,2]
[346180031,1734766243001,-500.0,0.00019449,2]
[346180032,1734766243012,-500.0,0.00019449,2]
[346180033,1734766243025,-500.0,0.00019449,2]
[346180034,1734766243037,-500.0,0.00019449,2]
[346180035,1734766243048,-500.0,0.00019449,2]
[346180036,1734766243060,-500.0,0.00019449,2]
[346180037,1734766243073,-507.57595541,0.00019449,2]
[346180038,1734766243085,-500.0,0.00019449,2]
[346180039,1734766243098,-500.0,0.00019449,2]
[346180040,1734766243110,-500.0,0.00019449,2]
[346180041,1734766243124,-500.0,0.00019449,2]
[346180042,1734766243134,-500.0,0.00019449,2]
[346180043,1734766243145,-500.0,0.00019449,2]
[346180044,1734766243158,-500.0,0.00019449,2]
[346180045,1734766243170,-502.36985725,0.00019449,2]
[346180046,1734766243182,-500.0,0.00019449,2]
[346180047,1734766243193,-502.73373815,0.00019449,2]
[346180048,1734766243206,-500.0,0.00019449,2]
[346180049,1734766243218,-500.0,0.00019449,2]
[346180050,1734766243230,-500.0,0.00019449,2]
[346180051,1734766243242,-500.0,0.00019449,2]
[346180052,1734766243254,-500.0,0.00019449,2]
[346180053,1734766243266,-500.0,0.00019449,2]
[346180054,1734766243277,-500.0,0.00019449,2]
[346180055,1734766243291,-500.0,0.00019449,2]
[346180056,1734766243303,-500.0,0.00019449,2]
[346180057,1734766243315,-500.0,0.00019449,2]
[346180058,1734766243327,-500.0,0.00019449,2]
[346180059,1734766243339,-500.0,0.00019449,2]
[346180060,1734766243350,-500.0,0.00019449,2]
[346180061,1734766243360,-500.0,0.00019449,2]
[346180062,1734766243373,-500.0,0.00019449,2]
[346180064,1734766243385,-516.58166313,0.00019449,2]
[346180065,1734766243398,-500.0,0.00019449,2]
[346180066,1734766243410,-500.0,0.00019449,2]
[346180067,1734766243421,-500.0,0.00019449,2]
[346180068,1734766243432,-500.0,0.00019449,2]
[346180070,1734766243444,-500.0,0.00019449,2]
[346180072,1734766243455,-500.0,0.00019449,2]
[346180074,1734766243465,-500.0,0.00019449,2]
[346180076,1734766243475,-323.36557809,0.00019449,2]
[346180078,1734766243485,-500.0,0.00019449,2]
[346180081,1734766243497,-1880.63,0.0001945,2]
[346180083,1734766243510,-599.47,0.0001945,2]
[346180085,1734766243522,-500.0,0.0001945,2]
[346180087,1734766243532,-500.0,0.0001945,2]
[346180089,1734766243543,-571.94,0.0001945,2]
[346180092,1734766243553,-788.06,0.0001945,2]
[346180094,1734766243563,-1594.97,0.0001945,2]
[346180096,1734766243575,-691.97,0.0001945,2]
[346180098,1734766243586,-1250.98,0.0001945,2]
[346180100,1734766243598,-1386.53,0.0001945,2]
[346180102,1734766243609,-2843.99,0.0001945,2]
[346180104,1734766243620,-1543.5,0.0001945,2]
[346180106,1734766243630,-1528.73,0.0001945,2]
[346180109,1734766243640,-1688.3,0.0001945,2]
[346180111,1734766243650,-653.19,0.0001945,2]
[346180113,1734766243660,-512.91,0.0001945,2]
[346180115,1734766243671,-878.51,0.0001945,2]
[346180117,1734766243682,-8120.52,0.0001945,2]
[346180119,1734766243693,-642.16,0.0001945,2]
[346180121,1734766243704,-1141.23,0.0001945,2]
[346180123,1734766243714,-2045.28,0.0001945,2]
[346180125,1734766243725,-989.96,0.0001945,2]
[346180127,1734766243735,-500.0,0.0001945,2]
[346180129,1734766243745,-500.0,0.00019451,2]
[346180132,1734766243756,-206.4945409,0.00019451,2]
[346180134,1734766243767,-500.0,0.00019451,2]
[346180136,1734766243778,-500.0,0.00019451,2]
[346180138,1734766243788,-500.0,0.00019451,2]
[346180140,1734766243799,-224.74390587,0.00019451,2]
[346180142,1734766243810,-507.25108371,0.00019451,2]
[346180145,1734766243821,-500.0,0.00019451,2]
[346180147,1734766243832,-255.74382755,0.00019451,2]
[346180149,1734766243843,-500.0,0.00019451,2]
[346180151,1734766243855,-500.0,0.00019451,2]
[346180153,1734766243865,-500.0,0.00019451,2]
[346180155,1734766243876,-562.46750296,0.00019451,2]
[346180158,1734766243886,-500.0,0.00019451,2]
[346180160,1734766243896,-500.0,0.00019451,2]
[346180162,1734766243907,-500.0,0.00019451,2]
[346180164,1734766243917,-500.0,0.00019451,2]
[346180166,1734766243928,-300.0,0.00019451,2]
[346180169,1734766243943,-500.0,0.00019451,2]
[346180171,1734766243956,-507.52906392,0.00019451,2]
[346180173,1734766243967,-500.0,0.00019451,2]
[346180175,1734766243980,-500.0,0.00019451,2]
[346180177,1734766243990,-500.0,0.00019451,2]
[346180180,1734766244001,-505.43634083,0.00019451,2]
[346180182,1734766244012,-500.0,0.00019451,2]
[346180184,1734766244023,-500.0,0.00019451,2]
[346180186,1734766244034,-500.0,0.00019451,2]
[346180188,1734766244045,-523.17507381,0.00019451,2]
[346180190,1734766244055,-500.0,0.00019451,2]
[346180193,1734766244068,-500.0,0.00019451,2]
[346180195,1734766244078,-500.0,0.00019451,2]
[346180197,1734766244090,-500.0,0.00019451,2]
[346180199,1734766244100,-500.0,0.00019451,2]
[346180201,1734766244112,-500.0,0.00019451,2]
[346180203,1734766244122,-251.4114903,0.00019451,2]
[346180205,1734766244133,-500.0,0.00019451,2]
[346180208,1734766244144,-500.0,0.00019451,2]
[346180210,1734766244154,-500.0,0.00019451,2]
[346180211,1734766244165,-500.0,0.00019451,2]
[346180212,1734766244177,-369.14567264,0.00019451,2]
[346180213,1734766244187,-500.0,0.00019451,2]
[346180214,1734766244198,-256.99836367,0.00019451,2]
[346180215,1734766244211,-500.0,0.00019451,2]
[346180216,1734766244223,-500.0,0.00019451,2]
[346180217,1734766244234,-511.31093899,0.00019451,2]
[346180218,1734766244245,-533.89840578,0.00019451,2]
[346180219,1734766244256,-500.0,0.00019451,2]
[346180220,1734766244267,-500.0,0.00019451,2]
[346180221,1734766244277,-500.0,0.00019451,2]